bitfinex-derivatives/quotes_BTCF0:USTF0_20250918
["timestamp","ask_amount","ask_price","bid_price","bid_amount"]
[1758153600968,0.001443,116510.0,116500.0,0.64787]
[1758153602366,0.001443,116510.0,116500.0,0.72491958]
[1758153602668,0.0001,116520.0,116510.0,0.03409]
[1758153602960,0.0001,116530.0,116520.0,0.03409]
[1758153603155,0.3609,116540.0,116530.0,0.03409]
[1758153603360,0.33045622,116540.0,116530.0,0.03409]
[1758153604565,0.33145622,116540.0,116530.0,0.03409]
[1758153604969,0.3609,116550.0,116530.0,0.1198677]
[1758153605171,0.3609,116550.0,116540.0,0.03409]
[1758153605371,0.3608,116550.0,116540.0,0.03409]
[1758153606163,0.6108,116550.0,116540.0,0.03409]
[1758153607170,1.3984,116550.0,116530.0,0.03409]
[1758153607468,0.3608,116540.0,116530.0,0.03409]
[1758153612569,0.3608,116540.0,116530.0,0.01263]
[1758153612875,0.63284213,116540.0,116520.0,0.01263]
[1758153613071,1.14716,116530.0,116520.0,0.03409]
[1758153614178,1.14716,116530.0,116520.0,0.03609]
[1758153617176,1.83746,116530.0,116520.0,0.002]
[1758153618170,1.85953403,116530.0,116520.0,0.002]
[1758153628878,1.41923403,116530.0,116520.0,0.002]
[1758153629085,1.41923403,116530.0,116500.0,0.01263]
[1758153629286,0.3608,116510.0,116500.0,0.03409]
[1758153629485,1.14624,116510.0,116500.0,0.03409]
[1758153630588,1.14624,116510.0,116490.0,0.03572]
[1758153630784,0.3608,116500.0,116490.0,0.03572]
[1758153631989,0.36942337,116500.0,116490.0,0.03572]
[1758153633290,0.37042337,116500.0,116490.0,0.03572]
[1758153634895,0.3618,116500.0,116490.0,0.03572]
[1758153636191,0.37022863,116500.0,116490.0,0.03572]
[1758153638300,0.37022863,116500.0,116490.0,0.01263]
[1758153638495,0.37022863,116500.0,116480.0,0.11276958]
[1758153638695,1.14568,116490.0,116480.0,0.11276958]
[1758153639096,1.14568,116490.0,116480.0,0.01263]
[1758153641404,1.14568,116490.0,116470.0,0.11276958]
[1758153641702,0.3608,116480.0,116470.0,0.11276958]
[1758153642999,0.3608,116480.0,116470.0,0.19859148]
[1758153643199,0.3608,116480.0,116470.0,0.19959148]
[1758153643803,0.3608,116480.0,116470.0,0.19859148]
[1758153645501,0.3608,116480.0,116470.0,0.1215419]
[1758153648209,0.3608,116480.0,116470.0,0.19859148]
[1758153653705,0.3608,116480.0,116470.0,0.1215419]
[1758153657107,0.3608,116480.0,116470.0,0.19859148]
[1758153658906,1.14446,116490.0,116480.0,0.0131]
[1758153659112,1.14436,116490.0,116480.0,0.19905418]
[1758153661319,0.3608,116490.0,116480.0,0.19905418]
[1758153661615,1.1442,116490.0,116480.0,0.19905418]
[1758153663813,1.1442,116490.0,116480.0,0.1220046]
[1758153665410,1.14504,116490.0,116480.0,0.1220046]
[1758153666317,1.14504,116490.0,116480.0,0.19905418]
[1758153668111,1.14504,116490.0,116480.0,0.1220046]
[1758153669917,1.14504,116490.0,116480.0,0.03619]
[1758153670221,1.39504,116490.0,116470.0,0.19858028]
[1758153670420,0.3608,116480.0,116470.0,0.03571]
[1758153670717,0.3608,116480.0,116470.0,0.077247]
[1758153670917,0.3608,116480.0,116460.0,0.10796942]
[1758153671114,1.14488,116470.0,116460.0,0.10796942]
[1758153671315,1.14488,116470.0,116460.0,0.0001]
[1758153672016,1.14488,116470.0,116450.0,0.077247]
[1758153672017,3.20348,116470.0,116450.0,0.077247]
[1758153672215,0.3608,116460.0,116450.0,0.077247]
[1758153672515,0.6108,116460.0,116440.0,0.077247]
[1758153672721,1.1578,116450.0,116440.0,0.077247]
[1758153673421,1.1578,116450.0,116430.0,0.077247]
[1758153673620,0.3608,116440.0,116430.0,0.077247]
[1758153674521,0.3608,116440.0,116430.0,0.091127]
[1758153674721,0.3608,116440.0,116430.0,0.114207]
[1758153674916,0.3608,116440.0,116430.0,0.2010585]
[1758153675822,0.3608,116440.0,116430.0,0.03796]
[1758153676822,0.429189,116440.0,116430.0,0.03796]
[1758153678621,1.226509,116440.0,116430.0,0.03796]
[1758153679322,1.226509,116440.0,116430.0,0.1238115]
[1758153681525,0.3608,116440.0,116430.0,0.3738115]
[1758153681724,1.15752,116440.0,116430.0,0.3738115]
[1758153682724,1.15756,116440.0,116430.0,0.3738115]
[1758153686522,0.3608,116440.0,116430.0,0.3738115]
[1758153686824,1.15704,116440.0,116430.0,0.3738115]
[1758153687920,0.79624,116440.0,116430.0,0.3738115]
[1758153689728,0.79624,116440.0,116430.0,0.1238115]
[1758153689923,1.15704,116440.0,116430.0,0.1238115]
[1758153690931,1.15704,116440.0,116430.0,0.03796]
[1758153691125,1.15704,116440.0,116430.0,0.0011]
[1758153693328,1.16558846,116440.0,116430.0,0.0011]
[1758153696430,1.16558846,116440.0,116430.0,0.01467]
[1758153697633,1.16558846,116440.0,116430.0,0.0011]
[1758153703028,1.41558846,116440.0,116430.0,0.0011]
[1758153704338,1.41558846,116440.0,116430.0,0.0001]
[1758153711738,1.43759854,116440.0,116430.0,0.0001]
[1758153712645,1.18759854,116440.0,116430.0,0.0001]
[1758153717946,1.54839854,116440.0,116430.0,0.0001]
[1758153720650,3.35795854,116440.0,116430.0,0.0001]
[1758153722541,2.56171854,116440.0,116430.0,0.0001]
[1758153722737,3.35503854,116440.0,116430.0,0.01406]
[1758153722943,3.35515854,116440.0,116430.0,0.03699]
[1758153723343,3.35515854,116440.0,116430.0,0.0001]
[1758153723946,2.56171854,116440.0,116430.0,0.0001]
[1758153724147,3.35523854,116440.0,116430.0,0.0001]
[1758153724343,3.33322846,116440.0,116430.0,0.0001]
[1758153728240,3.35514625,116440.0,116410.0,0.07043]
[1758153728447,0.7216,116420.0,116410.0,0.07043]
[1758153728647,1.5146,116420.0,116410.0,0.07043]
[1758153729050,1.5146,116420.0,116410.0,0.10732]
[1758153730456,1.5146,116420.0,116410.0,0.1931863]
[1758153731349,1.5146,116420.0,116410.0,0.1941863]
[1758153731556,1.5146,116420.0,116410.0,0.10832]
[1758153732152,1.5146,116420.0,116410.0,0.03789]
[1758153732351,0.7216,116420.0,116410.0,0.3737555]
[1758153732551,1.51436,116420.0,116410.0,0.3737555]
[1758153734057,1.51436,116420.0,116410.0,0.4510025]
[1758153739454,2.25840846,116440.0,116420.0,0.03689]
[1758153739455,0.3608,116430.0,116420.0,0.03689]
[1758153739656,1.15288,116430.0,116420.0,0.1227408]
[1758153740353,1.15288,116430.0,116420.0,0.3727408]
[1758153740559,1.15284,116430.0,116420.0,0.3727408]
[1758153740760,1.15284,116430.0,116420.0,0.4499878]
[1758153741653,1.15268,116430.0,116420.0,0.4499878]
[1758153746955,1.15268,116430.0,116420.0,0.114137]
[1758153747162,1.15268,116430.0,116420.0,0.03699]
[1758153747370,1.15268,116430.0,116420.0,0.1228483]
[1758153747769,1.15268,116430.0,116420.0,0.03699]
[1758153748274,1.15268,116430.0,116420.0,0.01406]
[1758153749158,1.15268,116430.0,116420.0,0.03699]
[1758153751483,1.15268,116430.0,116420.0,0.01406]
[1758153752784,1.15268,116430.0,116420.0,0.0001]
[1758153764996,1.15268,116430.0,116420.0,0.01365]
[1758153765495,1.15268,116430.0,116420.0,0.03538]
[1758153768396,0.3608,116430.0,116420.0,0.1212385]
[1758153768597,1.15064,116430.0,116420.0,0.1212385]
[1758153769397,0.3608,116430.0,116420.0,0.1212385]
[1758153769598,1.151,116430.0,116420.0,0.1212385]
[1758153769898,1.151,116430.0,116420.0,0.03538]
[1758153770491,0.3608,116430.0,116420.0,0.3712385]
[1758153770702,1.15084,116430.0,116420.0,0.3712385]
[1758153771698,1.15084,116430.0,116420.0,0.4484855]
[1758153771893,1.15084,116430.0,116420.0,0.3712385]
[1758153772096,1.15084,116430.0,116420.0,0.4484855]
[1758153779604,1.15084,116430.0,116420.0,0.3712385]
[1758153780106,1.15084,116430.0,116420.0,0.4484855]
[1758153781608,1.15084,116430.0,116420.0,0.5189155]
[1758153789014,1.14916,116430.0,116420.0,0.5189155]
[1758153792719,1.14878806,116430.0,116420.0,0.5189155]
[1758153797815,1.14878806,116430.0,116420.0,0.433057]
[1758153798122,1.14878806,116430.0,116420.0,0.147777]
[1758153798123,1.39878806,116430.0,116420.0,0.147777]
[1758153798315,1.39878806,116430.0,116420.0,0.07053]
[1758153799829,1.39878806,116430.0,116420.0,0.08359]
[1758153800829,0.61042806,116430.0,116420.0,0.10577]
[1758153801029,1.39834806,116430.0,116420.0,0.10577]
[1758153801731,1.39834806,116430.0,116420.0,0.08359]
[1758153801932,1.39834806,116430.0,116420.0,0.07053]
[1758153805333,1.39834806,116430.0,116420.0,0.08359]
[1758153805632,1.39834806,116430.0,116420.0,0.10577]
[1758153806334,1.39834806,116430.0,116420.0,0.07053]
[1758153807733,1.39778806,116430.0,116420.0,0.07053]
[1758153808234,1.39778806,116430.0,116420.0,0.08359]
[1758153809936,1.39778806,116430.0,116420.0,0.07053]
[1758153811533,1.39778806,116430.0,116420.0,0.00053]
[1758153811836,1.41946562,116430.0,116410.0,0.01271]
[1758153812039,0.3608,116420.0,116410.0,0.01271]
[1758153813138,0.3608,116420.0,116410.0,0.01371]
[1758153813934,0.3608,116420.0,116410.0,0.0995774]
[1758153814235,0.3608,116420.0,116410.0,0.1223874]
[1758153814735,1.14884,116420.0,116410.0,0.3723874]
[1758153817842,0.3608,116420.0,116410.0,0.3723874]
[1758153818036,0.36042806,116430.0,116420.0,0.1213798]
[1758153818437,0.36042806,116430.0,116420.0,0.3713798]
[1758153818637,0.3608,116440.0,116430.0,0.1213725]
[1758153818938,1.1486,116440.0,116430.0,0.1213725]
[1758153820038,1.14984,116440.0,116430.0,0.1213725]
[1758153820440,0.3618,116440.0,116430.0,0.1213725]
[1758153820641,1.14964,116440.0,116430.0,0.1213725]
[1758153820841,0.3618,116440.0,116430.0,0.1213725]
[1758153821141,1.14964,116440.0,116430.0,0.1213725]
[1758153821343,0.78884,116440.0,116430.0,0.1213725]
[1758153821539,0.001,116440.0,116430.0,0.1213725]
[1758153821744,0.78884,116440.0,116430.0,0.1213725]
[1758153823642,0.001,116440.0,116430.0,0.1213725]
[1758153823842,0.789,116440.0,116430.0,0.1213725]
[1758153827748,1.1498,116440.0,116430.0,0.03552]
[1758153827949,1.1498,116440.0,116430.0,0.01271]
[1758153829345,1.1498,116440.0,116430.0,0.1213725]
[1758153829747,1.1498,116440.0,116430.0,0.03552]
[1758153836059,1.1498,116440.0,116430.0,0.1213725]
[1758153836251,1.1498,116440.0,116430.0,0.1214725]
[1758153837852,1.1498,116440.0,116430.0,0.01281]
[1758153838353,1.3998,116440.0,116430.0,0.01281]
[1758153839660,1.3998,116440.0,116430.0,0.0001]
[1758153843356,0.3618,116440.0,116430.0,0.3725125]
[1758153843555,0.41522345,116500.0,116490.0,0.01386]
[1758153843756,0.02164202,116500.0,116490.0,0.01386]
[1758153843959,0.80936202,116500.0,116490.0,0.01386]
[1758153844559,0.81781697,116500.0,116490.0,0.01386]
[1758153845158,0.79617495,116500.0,116490.0,0.01386]
[1758153845859,0.80417495,116500.0,116490.0,0.01386]
[1758153846361,0.79917495,116500.0,116490.0,0.01386]
[1758153848659,0.79917495,116500.0,116480.0,0.37466]
[1758153848856,2.17008,116490.0,116460.0,0.01386]
[1758153849056,0.3608,116480.0,116460.0,0.01386]
[1758153849253,0.7872,116470.0,116460.0,0.01386]
[1758153849453,1.148,116470.0,116460.0,0.01386]
[1758153849658,1.398,116470.0,116450.0,0.01386]
[1758153849955,0.3608,116470.0,116450.0,0.01386]
[1758153850158,0.78712,116460.0,116450.0,0.01386]
[1758153850956,0.3608,116470.0,116450.0,0.01386]
[1758153851264,0.3608,116470.0,116460.0,0.01386]
[1758153851561,1.14792,116470.0,116450.0,0.01386]
[1758153852264,0.3608,116470.0,116450.0,0.01586]
[1758153852462,0.78708,116460.0,116450.0,0.01586]
[1758153853364,0.78708,116460.0,116450.0,0.01386]
[1758153853563,0.78708,116460.0,116450.0,0.01486]
[1758153854066,0.78708,116460.0,116450.0,0.01586]
[1758153854960,0.3608,116470.0,116450.0,0.01586]
[1758153855158,0.78684,116460.0,116450.0,0.01586]
[1758153855670,0.78684,116460.0,116450.0,0.01486]
[1758153856068,0.78684,116460.0,116450.0,0.01386]
[1758153856961,0.78684,116460.0,116450.0,0.01486]
[1758153857662,0.78684,116460.0,116450.0,0.001]
[1758153857663,1.14764,116460.0,116450.0,0.001]
[1758153859661,1.14764,116460.0,116450.0,0.01486]
[1758153860161,1.14764,116460.0,116450.0,0.001]
[1758153860767,1.14764,116460.0,116430.0,0.37466]
[1758153860966,1.14764,116460.0,116440.0,0.01386]
[1758153862469,2.95696,116460.0,116440.0,0.01386]
[1758153862671,2.95696,116460.0,116440.0,0.01396]
[1758153862672,2.95906,116460.0,116440.0,0.01396]
[1758153863171,2.95706,116460.0,116440.0,0.01396]
[1758153869471,2.95706,116460.0,116450.0,0.01386]
[1758153869768,2.95706,116460.0,116450.0,0.01396]
[1758153869769,2.95696,116460.0,116450.0,0.01396]
[1758153873967,2.95696,116460.0,116450.0,0.0001]
[1758153874966,2.97828952,116460.0,116450.0,0.0001]
[1758153875372,3.20696,116460.0,116440.0,0.02359]
[1758153875573,0.3608,116450.0,116440.0,0.02359]
[1758153876569,0.3608,116450.0,116430.0,0.01386]
[1758153876767,0.78592,116440.0,116430.0,0.01386]
[1758153877572,0.79433248,116440.0,116430.0,0.01386]
[1758153880975,0.86139599,116440.0,116430.0,0.01386]
[1758153881874,0.07547599,116440.0,116430.0,0.01386]
[1758153882075,0.78592,116440.0,116430.0,0.01386]
[1758153882276,0.8011,116450.0,116430.0,0.01386]
[1758153882470,0.78592,116440.0,116430.0,0.01386]
[1758153883174,0.79446677,116440.0,116430.0,0.01386]
[1758153884473,0.00854677,116440.0,116430.0,0.03614]
[1758153884668,0.78592,116440.0,116430.0,0.28614]
[1758153886373,0.78592,116440.0,116430.0,0.26386]
[1758153886881,0.79446335,116440.0,116430.0,0.28614]
[1758153889083,0.86301716,116440.0,116430.0,0.28614]
[1758153890585,0.07709716,116440.0,116430.0,0.28614]
[1758153890778,0.78592,116440.0,116430.0,0.28614]
[1758153891385,2.61062,116450.0,116430.0,0.28614]
[1758153891585,0.78592,116440.0,116430.0,0.03614]
[1758153891781,0.79453899,116440.0,116430.0,0.03614]
[1758153893286,0.86367649,116440.0,116430.0,0.03614]
[1758153894584,0.86367649,116440.0,116430.0,0.01386]
[1758153894786,0.86367649,116440.0,116430.0,0.01396]
[1758153900591,1.22447649,116440.0,116430.0,0.0001]
[1758153900796,1.47447649,116440.0,116430.0,0.0001]
[1758153902896,1.47447649,116440.0,116430.0,0.01355]
[1758153904002,0.07775649,116440.0,116430.0,0.03668]
[1758153904196,0.78584,116440.0,116430.0,0.01345]
[1758153904400,0.78584,116440.0,116430.0,0.03658]
[1758153904589,0.79444998,116440.0,116430.0,0.03658]
[1758153905800,0.79444998,116440.0,116430.0,0.01345]
[1758153906189,0.86322355,116440.0,116430.0,0.01345]
[1758153911306,0.07738355,116440.0,116430.0,0.01345]
[1758153911508,0.78584,116440.0,116430.0,0.01345]
[1758153911706,0.80713491,116440.0,116430.0,0.01345]
[1758153912207,0.78584,116440.0,116430.0,0.01345]
[1758153913207,0.79441325,116440.0,116430.0,0.01345]
[1758153913806,0.79441325,116440.0,116420.0,0.37466]
[1758153914008,0.79441325,116440.0,116420.0,0.39779]
[1758153914504,0.78584,116430.0,116420.0,0.39779]
[1758153915908,0.78584,116430.0,116420.0,0.39879]
[1758153916508,0.78584,116430.0,116420.0,0.37566]
[1758153916709,0.78584,116430.0,116420.0,0.39879]
[1758153918407,0.78584,116430.0,116420.0,0.37566]
[1758153919510,0.78584,116430.0,116420.0,0.37466]
[1758153924517,0.78584,116430.0,116420.0,0.39779]
[1758153924710,0.78584,116430.0,116420.0,0.39789]
[1758153926016,0.07614996,116440.0,116430.0,0.03658]
[1758153926316,0.86176996,116440.0,116430.0,0.39748]
[1758153927414,0.00871162,116440.0,116430.0,0.39748]
[1758153927614,0.78672,116440.0,116430.0,0.64748]
[1758153927816,0.78672,116440.0,116430.0,0.7333308]
[1758153928114,0.78672,116440.0,116430.0,0.64748]
[1758153928813,0.78672,116440.0,116430.0,0.74190567]
[1758153929018,0.78668,116440.0,116430.0,0.74190567]
[1758153929319,0.001,116440.0,116430.0,0.74190567]
[1758153929514,0.78668,116440.0,116430.0,0.74190567]
[1758153929816,0.78468,116440.0,116430.0,0.74190567]
[1758153930716,0.0001,116450.0,116440.0,0.01341]
[1758153931018,0.78564,116450.0,116440.0,0.39653]
[1758153933116,0.78764,116450.0,116440.0,0.39653]
[1758153933318,0.78764,116450.0,116440.0,0.4823734]
[1758153934014,0.002,116450.0,116440.0,0.7323734]
[1758153936025,0.002,116450.0,116440.0,0.64653]
[1758153936321,0.002,116450.0,116440.0,0.39653]
[1758153941125,0.002,116450.0,116440.0,0.37431]
[1758153941325,0.252,116450.0,116440.0,0.37431]
[1758153942923,0.6128,116450.0,116440.0,0.01351]
[1758153944930,0.252,116450.0,116440.0,0.01351]
[1758153945523,0.252,116450.0,116440.0,0.03573]
[1758153945725,0.252,116450.0,116440.0,0.01351]
[1758153956236,0.252,116450.0,116440.0,0.03573]
[1758153958435,0.252,116450.0,116440.0,0.39653]
[1758153962732,0.27319237,116450.0,116440.0,0.39653]
[1758153965538,0.002,116450.0,116440.0,0.64653]
[1758153965838,0.56332,116450.0,116440.0,0.7323736]
[1758153967537,0.56332,116450.0,116440.0,0.4583181]
[1758153967732,0.56332,116450.0,116440.0,0.39653]
[1758153968137,0.002,116450.0,116440.0,0.39653]
[1758153968337,0.7876,116450.0,116440.0,0.39653]
[1758153973746,0.7876,116450.0,116440.0,0.01351]
[1758153974746,0.7876,116450.0,116440.0,0.03651]
[1758153976948,0.7876,116450.0,116440.0,0.01351]
[1758153977341,0.7876,116450.0,116440.0,0.03651]
[1758153978251,0.80880805,116450.0,116440.0,0.03651]
[1758153979643,0.80880805,116450.0,116440.0,0.01351]
[1758153981655,0.80880805,116450.0,116440.0,0.03651]
[1758153981848,0.7876,116450.0,116440.0,0.03651]
[1758153982148,0.7876,116450.0,116440.0,0.0982981]
[1758153982552,0.7876,116450.0,116440.0,0.4590981]
[1758153987649,0.78748,116450.0,116440.0,0.4590981]
[1758153992854,0.002,116450.0,116440.0,0.4590981]
[1758153993050,0.78748,116450.0,116440.0,0.4590981]
[1758153994560,0.002,116450.0,116440.0,0.4590981]
[1758153994857,0.78748,116450.0,116440.0,0.4590981]
[1758153995351,0.002,116450.0,116440.0,0.4590981]
[1758153995556,0.73728,116450.0,116440.0,0.7090981]
[1758153996658,0.73728,116450.0,116440.0,0.64731]
[1758153996956,0.73728,116450.0,116440.0,0.7331534]
[1758153998260,0.73728,116450.0,116440.0,0.7948895]
[1758153998857,0.73728,116450.0,116440.0,0.7090461]
[1758153999360,0.73728,116450.0,116440.0,0.4590461]
[1758153999562,0.73728,116450.0,116440.0,0.46743533]
[1758154000265,0.73728,116450.0,116440.0,0.4590461]
[1758154004377,0.73728,116450.0,116440.0,0.39731]
[1758154004577,0.002,116450.0,116440.0,0.474557]
[1758154004777,0.78744,116450.0,116440.0,0.39731]
[1758154004977,0.78744,116450.0,116440.0,0.45904114]
[1758154006780,0.78744,116450.0,116440.0,0.54488454]
[1758154007177,0.78744,116450.0,116440.0,0.45904114]
[1758154008474,0.002,116450.0,116440.0,0.7331534]
[1758154008679,0.0001,116460.0,116450.0,0.03533]
[1758154008881,2.17016,116490.0,116470.0,0.03533]
[1758154009081,2.1913294,116490.0,116480.0,0.03533]
[1758154009580,2.1913294,116490.0,116480.0,0.0139]
[1758154010079,3.0082894,116490.0,116480.0,0.0139]
[1758154010480,1.83891035,116490.0,116480.0,0.03533]
[1758154010676,2.66199035,116490.0,116480.0,0.03533]
[1758154010886,2.73008916,116490.0,116480.0,0.03533]
[1758154011283,2.70891976,116490.0,116480.0,0.03533]
[1758154012377,1.89183976,116490.0,116480.0,0.03533]
[1758154012582,2.64642095,116490.0,116480.0,0.39613]
[1758154013884,2.64642095,116490.0,116470.0,0.0139]
[1758154013885,3.25722095,116490.0,116470.0,0.0139]
[1758154014287,0.3608,116480.0,116450.0,0.45379174]
[1758154014484,1.183,116470.0,116450.0,0.39204612]
[1758154014882,1.183,116470.0,116450.0,0.41347612]
[1758154016488,1.186,116470.0,116450.0,0.41347612]
[1758154017290,1.186,116470.0,116450.0,0.0139]
[1758154017491,1.186,116470.0,116440.0,0.45787562]
[1758154018387,0.3608,116450.0,116440.0,0.0139]
[1758154018690,1.18356,116450.0,116440.0,0.0139]
[1758154019086,0.82276,116450.0,116440.0,0.0139]
[1758154019686,0.82376,116450.0,116440.0,0.0139]
[1758154019892,0.82376,116450.0,116430.0,0.41438703]
[1758154020191,0.82376,116450.0,116430.0,0.39204703]
[1758154020385,1.18456,116450.0,116430.0,0.07564562]
[1758154021595,0.3618,116450.0,116440.0,0.03603]
[1758154021786,1.25132874,116450.0,116440.0,0.03603]
[1758154022193,1.25032874,116450.0,116440.0,0.03603]
[1758154022398,1.25132874,116450.0,116440.0,0.03603]
[1758154023093,0.06888874,116450.0,116440.0,0.03603]
[1758154023394,0.90012874,116450.0,116440.0,0.03603]
[1758154026797,0.83148,116450.0,116440.0,0.39683]
[1758154027193,0.001,116450.0,116440.0,0.64683]
[1758154027494,0.83076,116450.0,116440.0,0.70857562]
[1758154027686,0.83076,116450.0,116440.0,0.70867562]
[1758154028496,0.83076,116450.0,116440.0,0.64693]
[1758154035797,0.83076,116450.0,116440.0,0.39693]
[1758154036199,0.001,116450.0,116440.0,0.39693]
[1758154036397,0.8282,116450.0,116440.0,0.39693]
[1758154037102,0.001,116450.0,116440.0,0.39693]
[1758154037300,0.82816,116450.0,116440.0,0.39693]
[1758154039305,0.82776,116450.0,116440.0,0.39693]
[1758154040704,0.82776,116450.0,116440.0,0.45867562]
[1758154043307,0.82552,116450.0,116440.0,0.54451902]
[1758154044505,0.001,116450.0,116440.0,0.7327734]
[1758154044705,0.001,116450.0,116440.0,0.8100204]
[1758154045510,0.0001,116460.0,116450.0,0.121866]
[1758154045709,0.57854,116470.0,116460.0,0.1218586]
[1758154045913,0.57854,116470.0,116460.0,0.45868319]
[1758154045914,0.57844,116470.0,116460.0,0.45868319]
[1758154048013,0.58144,116470.0,116460.0,0.45868319]
[1758154050114,0.58144,116470.0,116460.0,0.54451179]
[1758154050417,0.003,116470.0,116460.0,0.54451179]
[1758154050916,0.003,116470.0,116460.0,0.90531179]
[1758154053206,0.003,116470.0,116460.0,1.15531179]
[1758154053419,0.00859832,116490.0,116480.0,0.03714]
[1758154053618,0.3608,116500.0,116490.0,0.03714]
[1758154053815,0.3608,116510.0,116500.0,0.03714]
[1758154054118,0.38191693,116510.0,116500.0,0.03714]
[1758154054611,1.20655693,116510.0,116500.0,0.03714]
[1758154055620,1.21503383,116510.0,116490.0,0.39794]
[1758154055922,1.28226995,116510.0,116490.0,0.39794]
[1758154056121,1.53226995,116510.0,116490.0,0.39794]
[1758154056310,1.53226995,116510.0,116490.0,0.37466]
[1758154057121,1.5,116500.0,116490.0,0.37466]
[1758154057720,1.75,116500.0,116490.0,0.37466]
[1758154058018,2.1108,116500.0,116480.0,0.37466]
[1758154058227,0.82352,116490.0,116480.0,0.37466]
[1758154059521,0.82352,116490.0,116480.0,0.37666]
[1758154062827,0.82352,116490.0,116480.0,0.03914]
[1758154063022,0.82352,116490.0,116480.0,0.01586]
[1758154063211,0.82352,116490.0,116480.0,0.03914]
[1758154063411,0.43651302,116510.0,116490.0,0.03714]
[1758154063615,2.32516,116500.0,116490.0,0.03714]
[1758154064017,2.57516,116500.0,116490.0,0.03714]
[1758154064620,2.57516,116500.0,116490.0,0.01386]
[1758154065625,2.57516,116500.0,116490.0,0.01486]
[1758154068328,1.75,116500.0,116490.0,0.01486]
[1758154068517,2.57532,116500.0,116490.0,0.01486]
[1758154075835,1.75,116500.0,116490.0,0.01486]
[1758154076038,2.57296,116500.0,116490.0,0.01486]
[1758154079538,2.71556,116500.0,116490.0,0.01486]
[1758154080334,2.59342677,116500.0,116490.0,0.01486]
[1758154081733,3.09682677,116500.0,116470.0,0.07561319]
[1758154081938,0.3608,116490.0,116470.0,0.07561319]
[1758154082139,0.8202,116480.0,116470.0,0.07561319]
[1758154082739,1.181,116480.0,116470.0,0.07561319]
[1758154082937,1.181,116480.0,116460.0,0.45766319]
[1758154083138,1.1811,116480.0,116460.0,0.45766319]
[1758154083340,1.5,116470.0,116460.0,0.45766319]
[1758154085046,1.5,116470.0,116460.0,0.09686319]
[1758154085236,1.5,116470.0,116460.0,0.06185319]
[1758154085438,1.5,116470.0,116460.0,0.0001]
[1758154085640,1.8608,116470.0,116460.0,0.0001]
[1758154086243,2.17986478,116470.0,116450.0,0.06175319]
[1758154086449,0.8206,116460.0,116440.0,0.45688319]
[1758154087236,0.3608,116450.0,116440.0,0.09608319]
[1758154087838,0.3608,116450.0,116440.0,0.09808319]
[1758154088348,0.3608,116450.0,116440.0,0.03733]
[1758154088947,0.36950121,116450.0,116440.0,0.09908319]
[1758154089944,0.36950121,116450.0,116440.0,0.03733]
[1758154090542,0.36950121,116450.0,116440.0,0.01618]
[1758154091242,0.36950121,116450.0,116440.0,0.07793319]
[1758154092146,1.18878121,116450.0,116440.0,0.07793319]
[1758154094246,1.18878121,116450.0,116440.0,0.09908319]
[1758154095350,1.18710121,116450.0,116440.0,0.09908319]
[1758154096350,0.36950121,116450.0,116440.0,0.09908319]
[1758154096650,1.18666121,116450.0,116440.0,0.09908319]
[1758154097753,0.82586121,116450.0,116440.0,0.09908319]
[1758154106256,0.82586121,116450.0,116440.0,0.03733]
[1758154106459,0.82586121,116450.0,116440.0,0.09918319]
[1758154108061,1.18666121,116450.0,116440.0,0.09918319]
[1758154108956,1.18666121,116450.0,116440.0,0.03743]
[1758154109352,1.18666121,116450.0,116440.0,0.09918319]
[1758154109858,0.82586121,116450.0,116440.0,0.09918319]
[1758154110257,0.82586121,116450.0,116440.0,0.07803319]
[1758154111752,0.82586121,116450.0,116440.0,0.06485319]
[1758154111958,1.18666121,116450.0,116440.0,0.01665]
[1758154112953,1.18666121,116450.0,116440.0,0.0784203]
[1758154113954,1.18666121,116450.0,116440.0,0.01665]
[1758154114253,1.43666121,116450.0,116440.0,0.0031]
[1758154115055,1.43666121,116450.0,116440.0,0.0001]
[1758154115558,1.43666121,116450.0,116440.0,0.0021]
[1758154116059,1.45822712,116450.0,116420.0,0.01318]
[1758154116259,0.3608,116430.0,116420.0,0.01318]
[1758154116458,1.17264,116430.0,116420.0,0.01318]
[1758154116657,1.17264,116430.0,116420.0,0.03433]
[1758154117561,1.17264,116430.0,116420.0,0.03633]
[1758154118358,1.8094,116440.0,116430.0,0.01355]
[1758154118359,2.1702,116440.0,116430.0,0.01355]
[1758154118559,2.9814,116440.0,116430.0,0.0347]
[1758154118965,2.9814,116440.0,116430.0,0.01355]
[1758154121069,2.9814,116440.0,116430.0,0.01455]
[1758154126665,2.9814,116440.0,116430.0,0.001]
[1758154127966,3.00292809,116440.0,116430.0,0.001]
[1758154128865,3.14552809,116440.0,116430.0,0.001]
[1758154134168,2.99888809,116440.0,116430.0,0.0357]
[1758154137370,2.97736,116440.0,116430.0,0.0357]
[1758154137668,2.97736,116440.0,116430.0,0.0358]
[1758154138861,3.11936,116440.0,116430.0,0.0358]
[1758154139064,2.97676,116440.0,116430.0,0.0358]
[1758154140472,2.1702,116440.0,116430.0,0.01465]
[1758154140770,2.97652,116440.0,116430.0,0.01465]
[1758154140966,2.1702,116440.0,116430.0,0.01465]
[1758154141167,2.97612,116440.0,116430.0,0.01465]
[1758154142272,2.97612,116440.0,116430.0,0.0379]
[1758154143175,2.97556,116440.0,116430.0,0.01465]
[1758154143575,2.97556,116440.0,116430.0,0.0379]
[1758154146578,2.975,116440.0,116430.0,0.0379]
[1758154147170,2.975,116440.0,116430.0,0.0011]
[1758154148277,2.99661669,116440.0,116430.0,0.0011]
[1758154154075,2.99661669,116440.0,116430.0,0.01424]
[1758154154273,2.99661669,116440.0,116430.0,0.03749]
[1758154154577,2.99661669,116440.0,116430.0,0.01424]
[1758154159284,2.99661669,116440.0,116430.0,0.0011]
[1758154162487,2.99661669,116440.0,116430.0,0.01424]
[1758154162790,2.19181669,116440.0,116430.0,0.01424]